[Event "Early-Titled-Tuesday-Blitz-May-14-2024"]
[Site "Chess.com"]
[Date "2024.05.14"]
[Round "3"]
[White "Manukyan_Artak"]
[Black "bascheyaro"]
[Result "1/2-1/2"]
[WhiteElo "2574"]
[BlackElo "2809"]
[TimeControl "180+1"]
[EndTime "8:31:11 PDT"]
[Termination "Game drawn by repetition"]

1. e4 {[%clk 0:03:00.9]} 1... e6 {[%clk 0:02:53.1]} 2. d4 {[%clk 0:03:00.2]}
2... d5 {[%clk 0:02:53.3]} 3. e5 {[%clk 0:03:00.5]} 3... c5 {[%clk 0:02:53.5]}
4. c3 {[%clk 0:03:00.9]} 4... Qb6 {[%clk 0:02:54.2]} 5. Nf3 {[%clk 0:02:57.4]}
5... Bd7 {[%clk 0:02:54.5]} 6. a3 {[%clk 0:02:57.5]} 6... Bb5 {[%clk 0:02:54.8]}
7. c4 {[%clk 0:02:57.5]} 7... Bxc4 {[%clk 0:02:55.1]} 8. Bxc4 {[%clk 0:02:57.1]}
8... dxc4 {[%clk 0:02:56]} 9. Nbd2 {[%clk 0:02:56.7]} 9... Qa6 {[%clk
0:02:49.4]} 10. O-O {[%clk 0:02:54.2]} 10... Nc6 {[%clk 0:02:48.6]} 11. dxc5
{[%clk 0:02:52.4]} 11... Bxc5 {[%clk 0:02:48.1]} 12. Ne4 {[%clk 0:02:52.4]}
12... Be7 {[%clk 0:02:08]} 13. Bg5 {[%clk 0:02:37.5]} 13... f6 {[%clk 0:02:06]}
14. exf6 {[%clk 0:02:32.7]} 14... Nxf6 {[%clk 0:02:05.7]} 15. Nd6+ {[%clk
0:02:29.4]} 15... Bxd6 {[%clk 0:01:57.2]} 16. Qxd6 {[%clk 0:02:30.3]} 16... Ne7
{[%clk 0:01:57.5]} 17. Qxa6 {[%clk 0:02:22.7]} 17... bxa6 {[%clk 0:01:58.4]} 18.
Ne5 {[%clk 0:02:22.9]} 18... c3 {[%clk 0:01:46.3]} 19. bxc3 {[%clk 0:02:20.9]}
19... O-O {[%clk 0:01:45.6]} 20. Rfe1 {[%clk 0:02:15.3]} 20... Rac8 {[%clk
0:01:36.3]} 21. Rac1 {[%clk 0:02:10.9]} 21... Nf5 {[%clk 0:01:25]} 22. c4 {[%clk
0:02:04.5]} 22... h6 {[%clk 0:01:16.4]} 23. Bxf6 {[%clk 0:01:43.3]} 23... gxf6
{[%clk 0:01:17.3]} 24. Ng6 {[%clk 0:01:29.1]} 24... Rfe8 {[%clk 0:01:16.6]} 25.
Nf4 {[%clk 0:01:25.4]} 25... Kf7 {[%clk 0:01:13.4]} 26. c5 {[%clk 0:01:24]}
26... Nd4 {[%clk 0:01:04.5]} 27. Kf1 {[%clk 0:01:08.6]} 27... Rc6 {[%clk
0:01:02.2]} 28. Rc3 {[%clk 0:01:03.5]} 28... Nb5 {[%clk 0:00:50.9]} 29. Rh3
{[%clk 0:01:00.3]} 29... e5 {[%clk 0:00:45.8]} 30. Nd3 {[%clk 0:00:55.4]} 30...
Rd8 {[%clk 0:00:43.9]} 31. Nb4 {[%clk 0:00:50.3]} 31... Rxc5 {[%clk 0:00:43.9]}
32. Nxa6 {[%clk 0:00:39.6]} 32... Rc2 {[%clk 0:00:43.6]} 33. Nb4 {[%clk
0:00:29.9]} 33... Rb2 {[%clk 0:00:41]} 34. Rd3 {[%clk 0:00:23.1]} 34... Rxd3
{[%clk 0:00:37.9]} 35. Nxd3 {[%clk 0:00:24]} 35... Rb3 {[%clk 0:00:38.4]} 36.
Nc5 {[%clk 0:00:19.5]} 36... Rxa3 {[%clk 0:00:38.5]} 37. Rb1 {[%clk 0:00:19.6]}
37... Nd6 {[%clk 0:00:37.2]} 38. f3 {[%clk 0:00:19.2]} 38... Rc3 {[%clk
0:00:33.1]} 39. Ne4 {[%clk 0:00:16.8]} 39... Nxe4 {[%clk 0:00:30.5]} 40. fxe4
{[%clk 0:00:17.7]} 40... Rc7 {[%clk 0:00:30.7]} 41. Ke2 {[%clk 0:00:17.2]} 41...
a5 {[%clk 0:00:30.7]} 42. Ra1 {[%clk 0:00:17.1]} 42... Ra7 {[%clk 0:00:30.7]}
43. Ra4 {[%clk 0:00:16.7]} 43... Ke6 {[%clk 0:00:31]} 44. Kd3 {[%clk 0:00:17]}
44... Kd6 {[%clk 0:00:31.6]} 45. Kc4 {[%clk 0:00:17.2]} 45... Kc6 {[%clk
0:00:32.2]} 46. g4 {[%clk 0:00:17.1]} 46... Kb6 {[%clk 0:00:32.4]} 47. Ra1
{[%clk 0:00:14.7]} 47... Rd7 {[%clk 0:00:32.1]} 48. Rf1 {[%clk 0:00:14]} 48...
Rd4+ {[%clk 0:00:31.7]} 49. Kb3 {[%clk 0:00:14.2]} 49... Rxe4 {[%clk 0:00:30.8]}
50. Rxf6+ {[%clk 0:00:14.2]} 50... Kb5 {[%clk 0:00:31.5]} 51. Rxh6 {[%clk
0:00:11.1]} 51... Rxg4 {[%clk 0:00:31.8]} 52. Rh5 {[%clk 0:00:08.7]} 52... a4+
{[%clk 0:00:31.7]} 53. Ka2 {[%clk 0:00:07.8]} 53... Rg2+ {[%clk 0:00:31.1]} 54.
Ka3 {[%clk 0:00:07.8]} 54... Re2 {[%clk 0:00:30.9]} 55. h4 {[%clk 0:00:07.5]}
55... Re3+ {[%clk 0:00:31]} 56. Ka2 {[%clk 0:00:07.6]} 56... Kb4 {[%clk
0:00:31.6]} 57. Rh8 {[%clk 0:00:07.9]} 57... Re2+ {[%clk 0:00:32.1]} 58. Ka1
{[%clk 0:00:08.4]} 58... e4 {[%clk 0:00:30.4]} 59. h5 {[%clk 0:00:08.1]} 59...
e3 {[%clk 0:00:30.6]} 60. h6 {[%clk 0:00:07.6]} 60... Ka3 {[%clk 0:00:19.4]} 61.
Kb1 {[%clk 0:00:07.3]} 61... Rb2+ {[%clk 0:00:16.6]} 62. Kc1 {[%clk 0:00:07.2]}
62... Rh2 {[%clk 0:00:12.4]} 63. Re8 {[%clk 0:00:05.7]} 63... Rxh6 {[%clk
0:00:04.8]} 64. Rxe3+ {[%clk 0:00:05.6]} 64... Ka2 {[%clk 0:00:05.4]} 65. Re2+
{[%clk 0:00:04.9]} 65... Ka1 {[%clk 0:00:06]} 66. Re4 {[%clk 0:00:04.3]} 66...
Rc6+ {[%clk 0:00:06.2]} 67. Kd2 {[%clk 0:00:04.2]} 67... a3 {[%clk 0:00:06.8]}
68. Rb4 {[%clk 0:00:03.8]} 68... Ka2 {[%clk 0:00:06.6]} 69. Kd1 {[%clk
0:00:03.3]} 69... Rc7 {[%clk 0:00:07.1]} 70. Kd2 {[%clk 0:00:03.4]} 70... Rg7
{[%clk 0:00:07.9]} 71. Kd1 {[%clk 0:00:03.7]} 71... Rg2 {[%clk 0:00:08.6]} 72.
Kc1 {[%clk 0:00:03.7]} 72... Rb2 {[%clk 0:00:09.5]} 73. Ra4 {[%clk 0:00:03.3]}
73... Kb3 {[%clk 0:00:10.1]} 74. Ra8 {[%clk 0:00:03.1]} 74... a2 {[%clk
0:00:09.3]} 75. Rb8+ {[%clk 0:00:03.1]} 75... Kc3 {[%clk 0:00:09.5]} 76. Rc8+
{[%clk 0:00:00.8]} 76... Kb3 {[%clk 0:00:10]} 77. Rb8+ {[%clk 0:00:01.2]} 77...
Ka3 {[%clk 0:00:10.5]} 78. Ra8+ {[%clk 0:00:01.4]} 78... Kb3 {[%clk 0:00:11]}
79. Rb8+ {[%clk 0:00:01.7]} 1/2-1/2

[Event "Early-Titled-Tuesday-Blitz-May-14-2024"]
[Site "Chess.com"]
[Date "2024.05.14"]
[Round "3"]
[White "Vesper2018"]
[Black "ckgchess"]
[Result "1/2-1/2"]
[WhiteElo "2554"]
[BlackElo "2849"]
[TimeControl "180+1"]
[EndTime "8:31:17 PDT"]
[Termination "Game drawn - insufficient material"]

1. e4 {[%clk 0:02:58.9]} 1... e5 {[%clk 0:03:00.3]} 2. Nf3 {[%clk 0:02:58.6]}
2... Nf6 {[%clk 0:03:01.2]} 3. d4 {[%clk 0:02:55.3]} 3... d5 {[%clk 0:02:59.1]}
4. dxe5 {[%clk 0:02:50.2]} 4... Nxe4 {[%clk 0:02:59.3]} 5. Nbd2 {[%clk
0:02:50.8]} 5... Nc5 {[%clk 0:02:58.5]} 6. Be2 {[%clk 0:02:49.1]} 6... Be7
{[%clk 0:02:58.4]} 7. O-O {[%clk 0:02:49]} 7... O-O {[%clk 0:02:58.8]} 8. Re1
{[%clk 0:02:49.5]} 8... Bf5 {[%clk 0:02:58.5]} 9. Nb3 {[%clk 0:02:43.7]} 9...
Nxb3 {[%clk 0:02:55.9]} 10. axb3 {[%clk 0:02:43.3]} 10... c5 {[%clk 0:02:56.4]}
11. Bd3 {[%clk 0:02:39.9]} 11... Be6 {[%clk 0:02:50.8]} 12. Bf4 {[%clk
0:02:38.1]} 12... Nc6 {[%clk 0:02:51.1]} 13. Qd2 {[%clk 0:02:33.3]} 13... Bg4
{[%clk 0:02:44.9]} 14. Qe3 {[%clk 0:02:29.4]} 14... Re8 {[%clk 0:02:38.4]} 15.
h3 {[%clk 0:02:28.2]} 15... Bh5 {[%clk 0:02:37.7]} 16. g4 {[%clk 0:02:25.5]}
16... Bg6 {[%clk 0:02:38]} 17. Bf5 {[%clk 0:02:26.1]} 17... Bf8 {[%clk
0:02:28.8]} 18. Rad1 {[%clk 0:02:23.8]} 18... Ne7 {[%clk 0:02:22.8]} 19. Nh4
{[%clk 0:02:18.6]} 19... Nxf5 {[%clk 0:02:21.8]} 20. Nxf5 {[%clk 0:02:17.9]}
20... Qd7 {[%clk 0:02:18.5]} 21. Qd3 {[%clk 0:02:12.8]} 21... Rad8 {[%clk
0:02:16.2]} 22. c3 {[%clk 0:02:11.6]} 22... h5 {[%clk 0:02:03.9]} 23. Bg3 {[%clk
0:02:10.8]} 23... Re6 {[%clk 0:01:33.9]} 24. Qf3 {[%clk 0:02:08.5]} 24... Rb6
{[%clk 0:01:31.4]} 25. c4 {[%clk 0:01:59.8]} 25... d4 {[%clk 0:01:28.5]} 26. Rd3
{[%clk 0:01:59.3]} 26... hxg4 {[%clk 0:01:24.7]} 27. hxg4 {[%clk 0:01:59]} 27...
Qc6 {[%clk 0:01:23.6]} 28. Qxc6 {[%clk 0:01:50.6]} 28... Rxc6 {[%clk 0:01:23.7]}
29. Kg2 {[%clk 0:01:47]} 29... b5 {[%clk 0:01:19.7]} 30. Kf3 {[%clk 0:01:40.6]}
30... bxc4 {[%clk 0:01:17.9]} 31. bxc4 {[%clk 0:01:40.6]} 31... Rb6 {[%clk
0:01:18.6]} 32. Ra1 {[%clk 0:01:38.4]} 32... Rxb2 {[%clk 0:01:15.9]} 33. Rxa7
{[%clk 0:01:37.9]} 33... Rb4 {[%clk 0:01:13]} 34. Bh4 {[%clk 0:01:16.7]} 34...
Re8 {[%clk 0:01:13.1]} 35. Ke4 {[%clk 0:01:16.8]} 35... Rxc4 {[%clk 0:01:13]}
36. f4 {[%clk 0:01:16.5]} 36... f6 {[%clk 0:00:29.8]} 37. Kd5 {[%clk 0:01:03.3]}
37... Rc3 {[%clk 0:00:30.4]} 38. Rxc3 {[%clk 0:00:59.1]} 38... dxc3 {[%clk
0:00:31.3]} 39. Ra3 {[%clk 0:00:59.3]} 39... c2 {[%clk 0:00:23.4]} 40. Rc3
{[%clk 0:00:58.7]} 40... fxe5 {[%clk 0:00:17.5]} 41. fxe5 {[%clk 0:00:57.8]}
41... Bf7+ {[%clk 0:00:18.1]} 42. Ke4 {[%clk 0:00:57.1]} 42... g6 {[%clk
0:00:12]} 43. Ne3 {[%clk 0:00:55.3]} 43... Bg7 {[%clk 0:00:11.5]} 44. Bg3 {[%clk
0:00:54.5]} 44... Rd8 {[%clk 0:00:07.4]} 45. Rxc5 {[%clk 0:00:52.3]} 45... Bb3
{[%clk 0:00:07.2]} 46. Nxc2 {[%clk 0:00:50.6]} 46... Bf8 {[%clk 0:00:07.9]} 47.
Rc3 {[%clk 0:00:50]} 47... Bd5+ {[%clk 0:00:07.7]} 48. Ke3 {[%clk 0:00:47.4]}
48... Bh6+ {[%clk 0:00:08.2]} 49. Ke2 {[%clk 0:00:47.7]} 49... Re8 {[%clk
0:00:07.6]} 50. Rc5 {[%clk 0:00:45.3]} 50... Be6 {[%clk 0:00:07.2]} 51. Nd4
{[%clk 0:00:38.8]} 51... Bxg4+ {[%clk 0:00:07.3]} 52. Kd3 {[%clk 0:00:39.2]}
52... Rd8 {[%clk 0:00:07.4]} 53. Rc6 {[%clk 0:00:38.1]} 53... Kf7 {[%clk
0:00:05.6]} 54. Ke4 {[%clk 0:00:34.9]} 54... Bh3 {[%clk 0:00:01.7]} 55. Rc7+
{[%clk 0:00:34.8]} 55... Kg8 {[%clk 0:00:02]} 56. Bh4 {[%clk 0:00:31.4]} 56...
Re8 {[%clk 0:00:01.9]} 57. Bf6 {[%clk 0:00:31.4]} 57... Bg2+ {[%clk 0:00:01.1]}
58. Kd3 {[%clk 0:00:30.9]} 58... Bh3 {[%clk 0:00:02]} 59. Nc6 {[%clk 0:00:28.7]}
59... Bf1+ {[%clk 0:00:02.4]} 60. Kd4 {[%clk 0:00:28.6]} 60... Bf8 {[%clk
0:00:03.3]} 61. Nd8 {[%clk 0:00:22.1]} 61... Bh3 {[%clk 0:00:03.3]} 62. Kd5
{[%clk 0:00:22.1]} 62... Bg2+ {[%clk 0:00:03.2]} 63. Kd4 {[%clk 0:00:21.7]}
63... Bh3 {[%clk 0:00:04.1]} 64. Rc3 {[%clk 0:00:20.2]} 64... Bf5 {[%clk
0:00:02.8]} 65. Re3 {[%clk 0:00:20.2]} 65... Bh6 {[%clk 0:00:01.9]} 66. Re1
{[%clk 0:00:19.5]} 66... Bg7 {[%clk 0:00:02.5]} 67. Bg5 {[%clk 0:00:14.5]} 67...
Bh8 {[%clk 0:00:01.6]} 68. Nc6 {[%clk 0:00:14.2]} 68... Bg7 {[%clk 0:00:01.9]}
69. Kc5 {[%clk 0:00:14.3]} 69... Kf7 {[%clk 0:00:02.2]} 70. Kd6 {[%clk
0:00:14.4]} 70... Re6+ {[%clk 0:00:02.5]} 71. Kc5 {[%clk 0:00:14.4]} 71... Bf8+
{[%clk 0:00:02.4]} 72. Kb6 {[%clk 0:00:10.1]} 72... Re8 {[%clk 0:00:03.3]} 73.
Nd8+ {[%clk 0:00:08.9]} 73... Kg8 {[%clk 0:00:03.5]} 74. e6 {[%clk 0:00:09.1]}
74... Be7 {[%clk 0:00:03.1]} 75. Bxe7 {[%clk 0:00:06.6]} 75... Rxe7 {[%clk
0:00:04]} 76. Nc6 {[%clk 0:00:06.6]} 76... Rxe6 {[%clk 0:00:04.2]} 77. Rxe6
{[%clk 0:00:06.8]} 77... Bxe6 {[%clk 0:00:05.1]} 78. Ne7+ {[%clk 0:00:07.3]}
78... Kf7 {[%clk 0:00:06]} 79. Nxg6 {[%clk 0:00:07.9]} 1/2-1/2

[Event "Early-Titled-Tuesday-Blitz-May-14-2024"]
[Site "Chess.com"]
[Date "2024.05.14"]
[Round "3"]
[White "PeshkaCh"]
[Black "OriTaichman"]
[Result "0-1"]
[WhiteElo "2872"]
[BlackElo "2615"]
[TimeControl "180+1"]
[EndTime "8:31:21 PDT"]
[Termination "OriTaichman won by checkmate"]

1. Nf3 {[%clk 0:03:00.9]} 1... g6 {[%clk 0:02:54.1]} 2. e4 {[%clk 0:03:00.7]}
2... c5 {[%clk 0:02:54.2]} 3. d4 {[%clk 0:02:51.4]} 3... Bg7 {[%clk 0:02:50.5]}
4. c3 {[%clk 0:02:50]} 4... d5 {[%clk 0:02:48.3]} 5. Bb5+ {[%clk 0:02:49.4]}
5... Bd7 {[%clk 0:02:46]} 6. Bxd7+ {[%clk 0:02:45]} 6... Qxd7 {[%clk 0:02:45.9]}
7. e5 {[%clk 0:02:35.5]} 7... Nc6 {[%clk 0:02:43.2]} 8. O-O {[%clk 0:02:35.1]}
8... e6 {[%clk 0:02:28.5]} 9. Na3 {[%clk 0:02:30.1]} 9... a6 {[%clk 0:02:26.9]}
10. Nc2 {[%clk 0:02:27]} 10... Nge7 {[%clk 0:02:25]} 11. Bg5 {[%clk 0:02:26.4]}
11... h6 {[%clk 0:02:24.1]} 12. Bxe7 {[%clk 0:02:20.3]} 12... Qxe7 {[%clk
0:02:22.4]} 13. Re1 {[%clk 0:02:18.6]} 13... O-O {[%clk 0:02:12.6]} 14. h4
{[%clk 0:02:15.7]} 14... h5 {[%clk 0:02:07.2]} 15. Ne3 {[%clk 0:02:13.7]} 15...
Bh6 {[%clk 0:02:05.3]} 16. Qd2 {[%clk 0:02:05.6]} 16... b5 {[%clk 0:01:56.9]}
17. Nxd5 {[%clk 0:01:56.2]} 17... Bxd2 {[%clk 0:01:51.9]} 18. Nxe7+ {[%clk
0:01:56.6]} 18... Nxe7 {[%clk 0:01:52.8]} 19. Nxd2 {[%clk 0:01:57.5]} 19... cxd4
{[%clk 0:01:52.7]} 20. cxd4 {[%clk 0:01:58.4]} 20... Rfd8 {[%clk 0:01:52.2]} 21.
Nf3 {[%clk 0:01:57.6]} 21... Nf5 {[%clk 0:01:50.3]} 22. Red1 {[%clk 0:01:50.6]}
22... Rac8 {[%clk 0:01:50.1]} 23. Rd2 {[%clk 0:01:49.3]} 23... Rd5 {[%clk
0:01:42.3]} 24. Rad1 {[%clk 0:01:47.8]} 24... b4 {[%clk 0:01:38]} 25. Kf1 {[%clk
0:01:46]} 25... Kf8 {[%clk 0:01:18.3]} 26. Ke2 {[%clk 0:01:44.8]} 26... Ke7
{[%clk 0:01:18.5]} 27. Kd3 {[%clk 0:01:43.9]} 27... Ra5 {[%clk 0:01:15.1]} 28.
Rc2 {[%clk 0:01:13.7]} 28... Rd8 {[%clk 0:00:59.8]} 29. b3 {[%clk 0:01:06.1]}
29... Nxd4 {[%clk 0:00:59.1]} 30. Nxd4 {[%clk 0:00:43.7]} 30... Rxd4+ {[%clk
0:00:58.2]} 31. Kxd4 {[%clk 0:00:44.6]} 31... Rd5+ {[%clk 0:00:58.4]} 32. Kc4
{[%clk 0:00:45.1]} 32... Rxd1 {[%clk 0:00:59.3]} 33. Kxb4 {[%clk 0:00:45.8]}
33... Rd5 {[%clk 0:00:43.1]} 34. f4 {[%clk 0:00:27.2]} 34... Rd4+ {[%clk
0:00:41.8]} 35. Ka5 {[%clk 0:00:27.3]} 35... Rxf4 {[%clk 0:00:41.8]} 36. Kxa6
{[%clk 0:00:24.7]} 36... Rxh4 {[%clk 0:00:39.6]} 37. Kb5 {[%clk 0:00:24.4]}
37... Re4 {[%clk 0:00:39.3]} 38. a4 {[%clk 0:00:21.2]} 38... Rxe5+ {[%clk
0:00:39.5]} 39. Kb6 {[%clk 0:00:21.9]} 39... Re4 {[%clk 0:00:33]} 40. Rc4 {[%clk
0:00:12.7]} 40... Rxc4 {[%clk 0:00:19.1]} 41. bxc4 {[%clk 0:00:13.6]} 41... e5
{[%clk 0:00:19.6]} 42. Kc5 {[%clk 0:00:05.7]} 42... e4 {[%clk 0:00:20]} 43. Kd4
{[%clk 0:00:06]} 43... f5 {[%clk 0:00:20.6]} 44. a5 {[%clk 0:00:06.5]} 44... Kd6
{[%clk 0:00:20.8]} 45. a6 {[%clk 0:00:04.2]} 45... Kc6 {[%clk 0:00:20.6]} 46. c5
{[%clk 0:00:04.7]} 46... g5 {[%clk 0:00:19.5]} 47. Ke3 {[%clk 0:00:01.5]} 47...
h4 {[%clk 0:00:19.8]} 48. Kd4 {[%clk 0:00:01.5]} 48... g4 {[%clk 0:00:19.3]} 49.
Ke5 {[%clk 0:00:01.6]} 49... e3 {[%clk 0:00:19.3]} 50. a7 {[%clk 0:00:02.1]}
50... Kb7 {[%clk 0:00:19.5]} 51. Kd6 {[%clk 0:00:02.8]} 51... e2 {[%clk
0:00:18.8]} 52. c6+ {[%clk 0:00:03.4]} 52... Kxa7 {[%clk 0:00:19.3]} 53. c7
{[%clk 0:00:04.3]} 53... e1=Q {[%clk 0:00:19.8]} 54. c8=Q {[%clk 0:00:04.8]}
54... Qe4 {[%clk 0:00:13.3]} 55. Qc7+ {[%clk 0:00:03.9]} 55... Ka6 {[%clk
0:00:13.4]} 56. Qc8+ {[%clk 0:00:04]} 56... Kb5 {[%clk 0:00:13.7]} 57. Qc5+
{[%clk 0:00:03.6]} 57... Ka4 {[%clk 0:00:13.8]} 58. Qa7+ {[%clk 0:00:04.3]}
58... Kb3 {[%clk 0:00:14.1]} 59. Qf7+ {[%clk 0:00:02.2]} 59... Kb2 {[%clk
0:00:13.1]} 60. Qf6+ {[%clk 0:00:01.9]} 60... Kc2 {[%clk 0:00:13.3]} 61. Qxh4
{[%clk 0:00:02.5]} 61... Qxg2 {[%clk 0:00:12.6]} 62. Ke5 {[%clk 0:00:02.5]}
62... Qe4+ {[%clk 0:00:12.7]} 63. Kf6 {[%clk 0:00:03.2]} 63... Kd3 {[%clk
0:00:13]} 64. Qg3+ {[%clk 0:00:03.3]} 64... Qf3 {[%clk 0:00:13.4]} 65. Qd6+
{[%clk 0:00:03.6]} 65... Ke2 {[%clk 0:00:14]} 66. Qa6+ {[%clk 0:00:03.7]} 66...
Kf2 {[%clk 0:00:14.1]} 67. Qb6+ {[%clk 0:00:03.9]} 67... Kg2 {[%clk 0:00:14.5]}
68. Kg5 {[%clk 0:00:03.5]} 68... f4 {[%clk 0:00:08.8]} 69. Kh4 {[%clk
0:00:01.8]} 69... Qg3+ {[%clk 0:00:08.1]} 70. Kg5 {[%clk 0:00:02]} 70... f3
{[%clk 0:00:08.8]} 71. Qb2+ {[%clk 0:00:01.7]} 71... f2 {[%clk 0:00:09.1]} 72.
Qc2 {[%clk 0:00:01.8]} 72... Qf3 {[%clk 0:00:08.2]} 73. Qd2 {[%clk 0:00:01.4]}
73... Kh1 {[%clk 0:00:07.9]} 74. Kh5 {[%clk 0:00:00.5]} 74... f1=Q {[%clk
0:00:06.8]} 75. Kh6 {[%clk 0:00:01.3]} 75... Q1h3+ {[%clk 0:00:06]} 76. Kg7
{[%clk 0:00:01.3]} 76... g3 {[%clk 0:00:06.2]} 77. Qc2 {[%clk 0:00:00.9]} 77...
Qhg4+ {[%clk 0:00:04.9]} 78. Kh7 {[%clk 0:00:01.1]} 78... Qf7+ {[%clk
0:00:05.1]} 79. Kh6 {[%clk 0:00:01.3]} 79... Qfh5# {[%clk 0:00:05.3]} 0-1

[Event "Early-Titled-Tuesday-Blitz-May-14-2024"]
[Site "Chess.com"]
[Date "2024.05.14"]
[Round "3"]
[White "JacksterThePro"]
[Black "penguingm1"]
[Result "1/2-1/2"]
[WhiteElo "2469"]
[BlackElo "2817"]
[TimeControl "180+1"]
[EndTime "8:31:24 PDT"]
[Termination "Game drawn - insufficient material"]

1. e4 {[%clk 0:03:00.9]} 1... e5 {[%clk 0:02:58.4]} 2. Nf3 {[%clk 0:02:59.9]}
2... Nc6 {[%clk 0:02:59]} 3. Bc4 {[%clk 0:02:56.4]} 3... Nf6 {[%clk 0:02:49]} 4.
d3 {[%clk 0:02:52.6]} 4... h6 {[%clk 0:02:47.5]} 5. c3 {[%clk 0:02:48.5]} 5...
d6 {[%clk 0:02:28.7]} 6. h3 {[%clk 0:02:36.1]} 6... g6 {[%clk 0:02:23.1]} 7.
Nbd2 {[%clk 0:02:32.6]} 7... Bg7 {[%clk 0:02:22.5]} 8. Bb3 {[%clk 0:02:18.3]}
8... O-O {[%clk 0:02:21.1]} 9. Nc4 {[%clk 0:02:13.5]} 9... Re8 {[%clk
0:02:16.3]} 10. O-O {[%clk 0:02:12.7]} 10... d5 {[%clk 0:02:09.5]} 11. exd5
{[%clk 0:02:04.6]} 11... Nxd5 {[%clk 0:02:10.4]} 12. Re1 {[%clk 0:02:02.6]}
12... Bf5 {[%clk 0:02:06.4]} 13. Bc2 {[%clk 0:01:43.2]} 13... b5 {[%clk
0:01:58.6]} 14. Ne3 {[%clk 0:01:39.1]} 14... Nxe3 {[%clk 0:01:44.5]} 15. Bxe3
{[%clk 0:01:40]} 15... Qd6 {[%clk 0:01:43.2]} 16. d4 {[%clk 0:01:28.6]} 16...
Bxc2 {[%clk 0:01:23.2]} 17. Qxc2 {[%clk 0:01:29.5]} 17... e4 {[%clk 0:01:20.1]}
18. Nd2 {[%clk 0:01:25.4]} 18... f5 {[%clk 0:01:12.3]} 19. Qb3+ {[%clk
0:01:17.8]} 19... Kh7 {[%clk 0:01:11.7]} 20. Qxb5 {[%clk 0:01:17.2]} 20... Rab8
{[%clk 0:01:12]} 21. Qa4 {[%clk 0:01:08.7]} 21... f4 {[%clk 0:01:06.6]} 22. Nc4
{[%clk 0:01:06.4]} 22... Qf6 {[%clk 0:00:47.9]} 23. Bxf4 {[%clk 0:01:06.5]}
23... Rf8 {[%clk 0:00:24.1]} 24. Rxe4 {[%clk 0:00:52.5]} 24... Rf7 {[%clk
0:00:24.3]} 25. Rae1 {[%clk 0:00:48.2]} 25... h5 {[%clk 0:00:19.2]} 26. Bg3
{[%clk 0:00:46.3]} 26... g5 {[%clk 0:00:17.6]} 27. Re6 {[%clk 0:00:44.8]} 27...
Qf5 {[%clk 0:00:16]} 28. Qxc6 {[%clk 0:00:30.5]} 28... h4 {[%clk 0:00:15.7]} 29.
Qe4 {[%clk 0:00:21.3]} 29... hxg3 {[%clk 0:00:16]} 30. Qxf5+ {[%clk 0:00:21.5]}
30... Rxf5 {[%clk 0:00:16.9]} 31. fxg3 {[%clk 0:00:21.9]} 31... Rc8 {[%clk
0:00:14.8]} 32. Re7 {[%clk 0:00:21.2]} 32... Kg8 {[%clk 0:00:15.2]} 33. Rd7
{[%clk 0:00:21.4]} 33... Bf6 {[%clk 0:00:15.2]} 34. Rf1 {[%clk 0:00:15.4]} 34...
Rxf1+ {[%clk 0:00:14.8]} 35. Kxf1 {[%clk 0:00:16.3]} 35... Kf8 {[%clk
0:00:15.3]} 36. Rd5 {[%clk 0:00:16]} 36... Ke7 {[%clk 0:00:14.5]} 37. Rf5 {[%clk
0:00:15.9]} 37... Ke6 {[%clk 0:00:14.7]} 38. Rf3 {[%clk 0:00:16]} 38... Rb8
{[%clk 0:00:13.4]} 39. b3 {[%clk 0:00:16]} 39... a6 {[%clk 0:00:12.4]} 40. Ke2
{[%clk 0:00:16]} 40... Be7 {[%clk 0:00:11.6]} 41. Kd3 {[%clk 0:00:16.1]} 41...
Rg8 {[%clk 0:00:11.2]} 42. Re3+ {[%clk 0:00:16]} 42... Kd7 {[%clk 0:00:11.5]}
43. Ne5+ {[%clk 0:00:16.2]} 43... Kd6 {[%clk 0:00:11.9]} 44. g4 {[%clk
0:00:13.3]} 44... Bf6 {[%clk 0:00:11.9]} 45. Nf3 {[%clk 0:00:13.5]} 45... a5
{[%clk 0:00:11]} 46. Nd2 {[%clk 0:00:13.9]} 46... Be7 {[%clk 0:00:10.8]} 47.
Nc4+ {[%clk 0:00:13.7]} 47... Kd7 {[%clk 0:00:11]} 48. Nxa5 {[%clk 0:00:13.7]}
48... Ra8 {[%clk 0:00:11.5]} 49. b4 {[%clk 0:00:14.3]} 49... Bd6 {[%clk
0:00:12.1]} 50. a4 {[%clk 0:00:13.3]} 50... Rf8 {[%clk 0:00:12]} 51. Rf3 {[%clk
0:00:13.5]} 51... Re8 {[%clk 0:00:12.5]} 52. Nc4 {[%clk 0:00:13.8]} 52... Bf4
{[%clk 0:00:12.6]} 53. Ne5+ {[%clk 0:00:13.2]} 53... Kc8 {[%clk 0:00:12.6]} 54.
g3 {[%clk 0:00:12.4]} 54... Bc1 {[%clk 0:00:12.8]} 55. a5 {[%clk 0:00:11.3]}
55... Kb7 {[%clk 0:00:12.9]} 56. b5 {[%clk 0:00:11.5]} 56... Ra8 {[%clk
0:00:13.1]} 57. a6+ {[%clk 0:00:11.3]} 57... Kb6 {[%clk 0:00:13.7]} 58. c4
{[%clk 0:00:12]} 58... Bb2 {[%clk 0:00:13.4]} 59. Nd7+ {[%clk 0:00:11.2]} 59...
Ka5 {[%clk 0:00:13.6]} 60. Nc5 {[%clk 0:00:06.6]} 60... Kb4 {[%clk 0:00:13.4]}
61. Ne4 {[%clk 0:00:05.8]} 61... Rd8 {[%clk 0:00:13.1]} 62. d5 {[%clk
0:00:06.4]} 62... Re8 {[%clk 0:00:11.4]} 63. Rf5 {[%clk 0:00:05.7]} 63... Bc1
{[%clk 0:00:11.2]} 64. Rf1 {[%clk 0:00:05.3]} 64... Ba3 {[%clk 0:00:10.5]} 65.
Rb1+ {[%clk 0:00:05.4]} 65... Ka5 {[%clk 0:00:11.1]} 66. Ra1 {[%clk 0:00:05.1]}
66... Kb4 {[%clk 0:00:11.7]} 67. Rxa3 {[%clk 0:00:04]} 67... Kxa3 {[%clk
0:00:11.9]} 68. c5 {[%clk 0:00:03.5]} 68... Kb4 {[%clk 0:00:12.2]} 69. b6 {[%clk
0:00:03.9]} 69... cxb6 {[%clk 0:00:12.6]} 70. cxb6 {[%clk 0:00:04.2]} 70... Ka5
{[%clk 0:00:13.1]} 71. b7 {[%clk 0:00:02.5]} 71... Kxa6 {[%clk 0:00:13.2]} 72.
Nxg5 {[%clk 0:00:01.8]} 72... Kxb7 {[%clk 0:00:13.6]} 73. Kd4 {[%clk 0:00:02.1]}
73... Kc7 {[%clk 0:00:14.2]} 74. Ne6+ {[%clk 0:00:02.5]} 74... Kd6 {[%clk
0:00:15]} 75. Nf4 {[%clk 0:00:02.8]} 75... Ra8 {[%clk 0:00:15.6]} 76. Ke4 {[%clk
0:00:03.1]} 76... Ke7 {[%clk 0:00:15.4]} 77. Kf5 {[%clk 0:00:03.5]} 77... Rf8+
{[%clk 0:00:15.6]} 78. Kg5 {[%clk 0:00:03.8]} 78... Rg8+ {[%clk 0:00:16.1]} 79.
Kh4 {[%clk 0:00:04.2]} 79... Kf6 {[%clk 0:00:15.7]} 80. g5+ {[%clk 0:00:03.5]}
80... Kf5 {[%clk 0:00:16]} 81. Nh5 {[%clk 0:00:02.7]} 81... Rd8 {[%clk
0:00:15.3]} 82. g4+ {[%clk 0:00:03.1]} 82... Ke5 {[%clk 0:00:15.2]} 83. Nf6
{[%clk 0:00:02.4]} 83... Kf4 {[%clk 0:00:15.2]} 84. Kh5 {[%clk 0:00:02.4]} 84...
Rh8+ {[%clk 0:00:14.6]} 85. Kg6 {[%clk 0:00:02.9]} 85... Rxh3 {[%clk 0:00:14.3]}
86. d6 {[%clk 0:00:03.5]} 86... Rd3 {[%clk 0:00:14.3]} 87. d7 {[%clk 0:00:03.8]}
87... Rd4 {[%clk 0:00:14.7]} 88. Kf7 {[%clk 0:00:03.5]} 88... Kxg5 {[%clk
0:00:15.1]} 89. Ke7 {[%clk 0:00:02.7]} 89... Kg6 {[%clk 0:00:11.3]} 90. d8=Q
{[%clk 0:00:01.7]} 90... Rxd8 {[%clk 0:00:11.2]} 91. Kxd8 {[%clk 0:00:02.6]}
91... Kxf6 {[%clk 0:00:12]} 92. Kd7 {[%clk 0:00:02.7]} 92... Kg5 {[%clk
0:00:12.9]} 93. Kd6 {[%clk 0:00:03.6]} 93... Kxg4 {[%clk 0:00:13.8]} 1/2-1/2